Cogmind - Beta 14 @@@ ROGUE MODE // 2024.08.08 @ 08:13:11 // Winter2019/RPGLIKE Player: Bulbasornado Result: Self-destructed Performance ------------- Evolutions (5) 2500 Regions Visited (6) 1200 Robots Destroyed (87) 435 Value Destroyed (2453) 2453 Prototype IDs (27) 540 Alien Tech Used (0) 0 Bonus (-920) -920 TOTAL SCORE: 6208 Bonus ------- High Alert Combat Kills 316 Follower Combat Kills 7 Registered with UFD 300 Friendly Fire -1543 Cogmind --------- Core Integrity 317/600 Matter 300/300 Energy 100/100 System Corruption 0% Temperature Cool (0) Movement Flying (31) Location -5/Factory Parts ------- > --- POWER (1) -------- Backup Power I > --- PROPULSION (4) --- Flight Unit Flight Unit Flight Unit Flight Unit > --- UTILITY (4) ------ Surveybot 17 Chip 0b10 Decoder Chip [Scout] Targeting Computer Hacking Suite > --- WEAPON (3) ------- Gatling Laser Junk Cannon > --- INVENTORY (0) ---- (None) Peak State ------------ > --- POWER ------------ Backup Power I > --- PROPULSION ------- Cargo Legs Flight Unit Flight Unit > --- UTILITY ---------- Improved Heat Sink Targeting Computer Hacking Suite V3-11A's Pendant > --- WEAPON ----------- Beamcaster Assault Rifle Battle Cannon > --- INVENTORY -------- (None) [Rating: 37] Favorites ----------- Power Backup Power I Engine Backup Power I Propulsion Flight Unit Treads Light Treads Leg Cargo Legs Flight Unit Flight Unit Utility Hacking Suite Device Improved Heat Sink Processor Targeting Computer Hackware Hacking Suite Protection Light Armor Plating Weapon Assault Rifle Energy Gun Beamcaster Energy Cannon Beam Cannon Ballistic Gun Assault Rifle Ballistic Cannon Battle Cannon Special Weapon Junk Cannon Impact Weapon Hammer Build | -11 -10 -10 -10 -7 -7 -5 ------- Run | Yrd Mat Min Sub Rec Scr Fac Slots Evolved 8 | 2 4 2 . . . . Power . | . . . . . . . Propulsion 3 | 1 1 1 . . . . Utility 3 | . 2 1 . . . . Weapon 2 | 1 1 . . . . . Parts Attached 35 | 5 14 7 4 1 4 . Power 1 | 1 . . . . . . Engine 1 | 1 . . . . . . Core . | . . . . . . . Reactor . | . . . . . . . Propulsion 11 | 2 3 3 3 . . . Treads 2 | 2 . . . . . . Leg 1 | . . . 1 . . . Wheel . | . . . . . . . Hover . | . . . . . . . Flight 8 | . 3 3 2 . . . Utility 12 | . 7 1 1 . 3 . Device 7 | . 5 . 1 . 1 . Storage . | . . . . . . . Processor 3 | . . 1 . . 2 . Hackware 1 | . 1 . . . . . Protection 1 | . 1 . . . . . Artifact . | . . . . . . . Weapon 11 | 2 4 3 . 1 1 . Energy Gun 5 | 1 2 1 . 1 . . Energy Cannon 1 | . . 1 . . . . Ballistic Gun 2 | 1 1 . . . . . Ballistic Cannon 1 | . . 1 . . . . Launcher . | . . . . . . . Special Weapon 1 | . . . . . 1 . Impact Weapon 1 | . 1 . . . . . Slashing Weapon . | . . . . . . . Piercing Weapon . | . . . . . . . Special Melee Weapon . | . . . . . . . Unidentified Prototypes 3 | . . . 2 . 1 . Parts Lost . | . . . . . . . Power . | . . . . . . . Propulsion . | . . . . . . . Utility . | . . . . . . . Weapon . | . . . . . . . Highest Loss Streak . | . . . . . . . To Critical Strikes . | . . . . . . . Average Slot Usage (%) 98 | . 97 99 99 100 92 . Engine 9 | . 12 8 8 8 8 . Treads 5 | . 13 . . . . . Flight 25 | . 13 29 32 33 33 . Device 9 | . 10 8 10 16 2 . Processor 6 | . . 7 8 8 21 . Hackware 7 | . 5 8 8 8 8 . Protection 5 | . 5 8 5 . . . Energy Gun 9 | . 12 6 8 11 10 . Ballistic Gun 11 | . 18 10 8 8 2 . Ballistic Cannon 3 | . . 7 8 4 . . Peak Build Rating 37 | 5 15 21 37 25 37 37 Average Rating 18 | 3 10 17 21 23 34 37 On Entrance 18 | . 5 15 21 23 25 37 Naked Turns . | . . . . . . . Heaviest Build 20 | 8 12 15 15 14 20 19 Greatest Support 45 | 25 45 21 21 21 21 21 Greatest Overweight (x) 1 | . 1 . 1 . . . Average Overweight (x) . | . . . . . . . Largest Inventory Capacity . | . . . . . . . Average Capacity . | . . . . . . . Most Carried . | . . . . . . . Average Carried . | . . . . . . . Final Capacity . | . . . . . . . Final Carried . | . . . . . . . Class Distribution -------------------- 52% | Scavenger-Sprinter 18% | Scavenger-Gunner 11% | Mutant 7% | Hacker-Mutant 5% | Hacker-Gunner 5% | Gunner Dominant Class ---------------- Scavenger-Gunner | -10/Materials Scavenger-Gunner | -10/Mines Scavenger-Sprinter | -10/Subcaves Scavenger-Sprinter | -7/Recycling Scavenger-Sprinter | -7/Scraptown Scavenger-Sprinter | -5/Factory Resources | -11 -10 -10 -10 -7 -7 -5 ----------- Run | Yrd Mat Min Sub Rec Scr Fac Matter Collected 2052 | 250 881 289 568 24 40 . Remotely . | . . . . . . . Salvage Created 2880 | . 1416 552 742 170 . . Parts 198 | . 109 24 58 7 . . Haulers Intercepted 2 | . 2 . . . . . Recyclers Shooed 2 | . . 2 . . . . Parts Field Recycled . | . . . . . . . Retrieved Matter . | . . . . . . . Parts Self-Destructed 15 | . . . 15 . . . Prevented . | . . . . . . . Kills | -11 -10 -10 -10 -7 -7 -5 ------- Run | Yrd Mat Min Sub Rec Scr Fac Combat Hostiles Destroyed 63 | . 32 5 24 2 . . Guns 52 | . 32 3 16 1 . . Cannons 11 | . . 2 8 1 . . Classes Destroyed 14 | . 8 2 4 . . . Worker 7 | . 6 1 . . . . Builder 1 | . . 1 . . . . Hauler 2 | . 2 . . . . . Recycler 5 | . 1 4 . . . . Mechanic 1 | . 1 . . . . . Operator 4 | . 4 . . . . . Turret 1 | . . . 1 . . . Watcher 3 | . 3 . . . . . Swarmer 11 | . 3 2 6 . . . Grunt 36 | . 29 3 4 . . . Sentry 4 | . . 1 1 2 . . Artisan 2 | . . . 2 . . . Cobbler 1 | . . . 1 . . . Subdweller 16 | . . . 16 . . . Thug 2 | . . 2 . . . . Best Kill Streak 10 | . 10 3 5 2 . . Combat Bots Only 8 | . 8 2 5 2 . . Max Kills in Single Turn 3 | . 2 3 1 1 . . Gunslinging 1 | . 1 . . . . . Exploded . | . . . . . . . Melee . | . . . . . . . Uniques/NPCs Destroyed . | . . . . . . . Combat | -11 -10 -10 -10 -7 -7 -5 -------- Run | Yrd Mat Min Sub Rec Scr Fac Hostile Shots Fired 290 | . 122 14 145 9 . . Missed 109 | . 36 3 67 3 . . Damage Taken 2145 | . 944 130 1017 54 . . Core 1624 | . 735 86 758 45 . . Absorbed by Shields . | . . . . . . . Redirected to Core 1369 | . 598 72 678 21 . . Core Remaining (%) 76 | 100 . . . . 52 . Volleys Fired 401 | . 252 32 114 3 . . Largest 3 | . 3 3 3 3 . . Hottest 175 | . 100 134 134 175 . . Shots Fired 778 | . 435 88 246 9 . . Gun 674 | . 435 51 180 8 . . Cannon 104 | . . 37 66 1 . . Launcher . | . . . . . . . Special . | . . . . . . . Kinetic 440 | . 247 57 132 4 . . Thermal 338 | . 188 31 114 5 . . Explosive . | . . . . . . . Electromagnetic . | . . . . . . . Robot Hit Streak 48 | . 48 35 32 16 . . Robot Miss Streak 3 | . 3 2 3 . . . Penetration Max . | . . . . . . . Secondary Targets 3 | . 3 . . . . . Max Gunslinging Chain 1 | . 1 . . . . . Shots Hit Robots 407 | . 183 63 152 9 . . Core Hits 161 | . 82 22 51 6 . . Critical Kills 1 | . 1 . . . . . Critical Parts Destroyed 1 | . . 1 . . . . Critical Strikes 16 | . 1 6 9 . . . Burn 9 | . . 3 6 . . . Destroy 2 | . 1 1 . . . . Blast 5 | . . 2 3 . . . Melee Attacks 15 | . 15 . . . . . Impact 15 | . 15 . . . . . Slashing . | . . . . . . . Piercing . | . . . . . . . Sneak Attacks . | . . . . . . . Combat Hostiles . | . . . . . . . Follow-up Attacks . | . . . . . . . Damage Inflicted 6546 | . 2364 1255 2726 201 . . Guns 4963 | . 2316 614 1860 173 . . Cannons 1535 | . . 641 866 28 . . Explosions 48 | . 48 . . . . . Melee . | . . . . . . . Ramming . | . . . . . . . Kinetic 3542 | . 1227 771 1474 70 . . Thermal 2956 | . 1089 484 1252 131 . . Explosive 48 | . 48 . . . . . Electromagnetic . | . . . . . . . Impact . | . . . . . . . Slashing . | . . . . . . . Piercing . | . . . . . . . Highest Corruption . | . . . . . . . Average Corruption . | . . . . . . . Corruption Purged . | . . . . . . . Corruption Blocked . | . . . . . . . Overload Shots . | . . . . . . . Overflow Damage 43 | . . 26 17 . . . Projectiles 43 | . . 26 17 . . . Explosions . | . . . . . . . Melee . | . . . . . . . Knockbacks 18 | . . 5 13 . . . Impact . | . . . . . . . Kinetic 18 | . . 5 13 . . . Secondary . | . . . . . . . Self-Inflicted Damage . | . . . . . . . Shots . | . . . . . . . Rammed . | . . . . . . . Targets Rammed . | . . . . . . . Kicked . | . . . . . . . Crushed . | . . . . . . . Highest Temperature 106 | . 56 31 4 106 . . Average Temperature 19 | . 17 13 4 47 . . Received Heat Transfer 876 | . 495 57 306 18 . . Siege Activations . | . . . . . . . Robots Corrupted . | . . . . . . . Combat Hostiles . | . . . . . . . Parts Fried . | . . . . . . . Impact Corruptions . | . . . . . . . Robots Melted . | . . . . . . . Combat Hostiles . | . . . . . . . Parts Melted 4 | . 3 1 . . . . Heat Transferred 6446 | . 2300 1258 2627 261 . . Parts Sabotaged . | . . . . . . . Parts Stolen . | . . . . . . . Parts Stripped . | . . . . . . . Power Chain Reactions . | . . . . . . . Alert | -11 -10 -10 -10 -7 -7 -5 ------- Run | Yrd Mat Min Sub Rec Scr Fac Peak Influence 1357 | . 1357 769 . 88 . . Initial 529 | . . 529 . 48 . . Average 652 | . 727 661 . 64 . . Maximum Alert Level 4 | . 4 3 . . . . Low Security (%) 17 | 100 12 . . 100 . 100 Level 1 14 | . 22 . . . . . Level 2 16 | . 5 53 . . . . Level 3 33 | . 33 46 . . . . Level 4 17 | . 25 . . . . . Level 5 . | . . . . . . . High Security . | . . . . . . . Max Security . | . . . . . . . Squads Dispatched 10 | . 10 . . . . . Investigation 8 | . 8 . . . . . Extermination . | . . . . . . . Reinforcement 2 | . 2 . . . . . Assault . | . . . . . . . Garrison . | . . . . . . . Intercept . | . . . . . . . Searches Triggered . | . . . . . . . Construction Impeded . | . . . . . . . Haulers Reinforced . | . . . . . . . Active Scanning Responses . | . . . . . . . Cargo Convoy Interrupts . | . . . . . . . Stealth | -11 -10 -10 -10 -7 -7 -5 --------- Run | Yrd Mat Min Sub Rec Scr Fac Distress Signals 2 | . 2 . . . . . Communications Jammed . | . . . . . . . Distress Signals . | . . . . . . . Times Spotted 79 | . 41 6 31 1 . . Peak Tracking Total 6 | . 6 3 6 . . . Tactical Retreats 2 | . 1 . 1 . . . Traps | -11 -10 -10 -10 -7 -7 -5 ------- Run | Yrd Mat Min Sub Rec Scr Fac Traps Triggered 3 | . 2 . 1 . . . Indirectly . | . . . . . . . Trap Hack Attempts . | . . . . . . . Triggered . | . . . . . . . Disarmed . | . . . . . . . Reprogrammed . | . . . . . . . Reused . | . . . . . . . Traps Extracted . | . . . . . . . Installed 1 | . . 1 . . . . Triggered . | . . . . . . . Machines | -11 -10 -10 -10 -7 -7 -5 ---------- Run | Yrd Mat Min Sub Rec Scr Fac Machines Disabled 38 | . 33 3 2 . . . Max in Single Turn 3 | . 3 1 1 . . . Machines Repaired . | . . . . . . . Machines Dismantled . | . . . . . . . Machines Sabotaged . | . . . . . . . Overloaded Fab Kills . | . . . . . . . Hacking | -11 -10 -10 -10 -7 -7 -5 --------- Run | Yrd Mat Min Sub Rec Scr Fac Machines Accessed 20 | . 9 . 3 . 8 . Terminals 6 | . 6 . . . . . Fabricators . | . . . . . . . Repair Stations 1 | . 1 . . . . . Recycling Units 2 | . 2 . . . . . Scanalyzers . | . . . . . . . Garrison Access . | . . . . . . . Total Hacks 109 | . 51 . 12 . 46 . Successful 90 | . 32 . 12 . 46 . Failed 18 | . 18 . . . . . Catastrophic 2 | . 2 . . . . . Database Lockouts 1 | . 1 . . . . . Manual 39 | . 39 . . . . . Terminals 40 | . 40 . . . . . Fabricators . | . . . . . . . Repair Stations 3 | . 3 . . . . . Recycling Units 8 | . 8 . . . . . Scanalyzers . | . . . . . . . Garrison Access . | . . . . . . . Terminal Hacks 69 | . 11 . 12 . 46 . Record 54 | . . . 9 . 45 . Robot Analysis 5 | . 5 . . . . . Prototype ID Bank 1 | . 1 . . . . . Open Door 1 | . . . 1 . . . Locate Traps 4 | . 4 . . . . . Hauler Manifests 1 | . 1 . . . . . Derelict Proto ID Bank 2 | . . . 1 . 1 . Release Object 1 | . . . 1 . . . Fabricator Hacks . | . . . . . . . Repair Station Hacks 1 | . 1 . . . . . Refit 1 | . 1 . . . . . Recycling Unit Hacks 1 | . 1 . . . . . Retrieve Components 1 | . 1 . . . . . Scanalyzer . | . . . . . . . Garrison Access Hacks . | . . . . . . . Unauthorized Hacks 19 | . 19 . . . . . Terminals 16 | . 16 . . . . . Track 3 | . 3 . . . . . Botnet 6 | . 6 . . . . . Disrupt 4 | . 4 . . . . . Operators 1 | . 1 . . . . . Search 2 | . 2 . . . . . Fabricators . | . . . . . . . Repair Stations 1 | . 1 . . . . . Mechanics 1 | . 1 . . . . . Recycling Units 2 | . 2 . . . . . Tunnel 2 | . 2 . . . . . Scanalyzers . | . . . . . . . Garrison Access . | . . . . . . . Data Cores Recovered . | . . . . . . . Used . | . . . . . . . Hacking Detections 8 | . 8 . . . . . Full Trace Events 5 | . 5 . . . . . Feedback Events . | . . . . . . . Feedback Blocked . | . . . . . . . Robot Schematics Acquired . | . . . . . . . Robots Built . | . . . . . . . Authchips . | . . . . . . . Time . | . . . . . . . Total Robot Build Rating . | . . . . . . . Part Schematics Acquired . | . . . . . . . Parts Built . | . . . . . . . Authchips . | . . . . . . . Time . | . . . . . . . Total Part Build Rating . | . . . . . . . Parts Repaired . | . . . . . . . Time . | . . . . . . . Parts Recycled . | . . . . . . . Recycled Matter . | . . . . . . . Retrieved Matter . | . . . . . . . Retrieved Components 6 | . 6 . . . . . Parts Scanalyzed . | . . . . . . . Part Schematics Acquired . | . . . . . . . Parts Damaged . | . . . . . . . Bothacking | -11 -10 -10 -10 -7 -7 -5 ------------ Run | Yrd Mat Min Sub Rec Scr Fac Used RIF Installer . | . . . . . . . Robots Hacked . | . . . . . . . Non-combat . | . . . . . . . Combat . | . . . . . . . Robot Hacks Applied . | . . . . . . . Relay Couplers Released . | . . . . . . . Fabnet Peak Effective % . | . . . . . . . Robots Rewired . | . . . . . . . Allies Hacked . | . . . . . . . Hacks Repelled . | . . . . . . . Allies | -11 -10 -10 -10 -7 -7 -5 -------- Run | Yrd Mat Min Sub Rec Scr Fac Total Allies 9 | . . 3 6 . . . Largest Group 3 | . . 3 3 . . . Highest-Rated Group 58 | . . 40 58 . . . Highest-Rated Ally 20 | . . 16 20 . . . Total Orders . | . . . . . . . Ally Attacks 9 | . . 2 7 . . . Total Damage 75 | . . 34 41 . . . Kills 2 | . . 1 1 . . . Allies Corrupted . | . . . . . . . Allies Melted . | . . . . . . . Intel | -11 -10 -10 -10 -7 -7 -5 ------- Run | Yrd Mat Min Sub Rec Scr Fac Robot Analysis Total 5 | . 5 . . . . . Derelict Logs Recovered 2 | . . 1 1 . . . Drone Launches . | . . . . . . . Drone Recoveries . | . . . . . . . Exploration | -11 -10 -10 -10 -7 -7 -5 ------------- Run | Yrd Mat Min Sub Rec Scr Fac Turns Passed 4004 | 28 1516 552 1256 169 481 2 Spaces Moved 7382 | 28 1562 1022 2747 504 1517 2 Core 363 | 22 340 . 1 . . . Treads 15 | 6 9 . . . . . Legs . | . . . . . . . Wheels . | . . . . . . . Hover . | . . . . . . . Flight 7004 | . 1213 1022 2746 504 1517 2 Fastest Speed 31 | 50 34 31 31 31 31 31 Average Speed 34 | 73 42 33 31 31 31 31 Slowest Speed 160 | 160 160 34 100 31 31 31 Overloaded Moves . | . . . . . . . Propulsion Burnouts . | . . . . . . . Robots Hopped 43 | . 13 24 . 6 . . Cave-ins Triggered . | . . . . . . . Exploration Rate (%) 79 | 3 99 99 97 86 93 . Regions Visited 6 Branch Regions 4 Pre-discovered Areas 9 | . 2 2 1 . 4 . Known Exits Taken . | . . . . . . . Unknown Exits Taken 6 | 1 1 1 1 1 1 . Scrap Searched 18 | . . 1 6 . 11 . Spaces Dug 1 | . 1 . . . . . Terrain Destroyed 267 | . 261 3 3 . . . Melee 1 | . 1 . . . . . Projectile 6 | . . 3 3 . . . AOE 260 | . 260 . . . . . Terrain Rammed . | . . . . . . . Walls Destroyed . | . . . . . . . Machines Disabled . | . . . . . . . Actions | -11 -10 -10 -10 -7 -7 -5 --------- Run | Yrd Mat Min Sub Rec Scr Fac Total 8126 | 32 1971 1140 2951 502 1527 3 Wait 214 | . 82 87 41 . 3 1 Move 7293 | 27 1535 974 2746 493 1516 2 Hop 40 | . 13 23 . 4 . . Pick Up . | . . . . . . . Fast Attach 30 | 5 11 5 4 1 4 . Attach . | . . . . . . . Detach 1 | . . . 1 . . . Swap 5 | . 3 2 . . . . Drop 23 | . 10 5 3 1 4 . Fire 401 | . 252 32 114 3 . . Melee 15 | . 15 . . . . . Ram . | . . . . . . . Kick . | . . . . . . . Crush . | . . . . . . . Escape Stasis . | . . . . . . . Rewire . | . . . . . . . Trap 1 | . . 1 . . . . Miscellaneous 103 | . 50 11 42 . . . Route ------- -11/Scrapyard -10/Materials (discovered 4 exits: [*Mat x3] / [*Min]) -10/Mines (discovered 3 exits: [*Mat x2] / *Sub) -10/Subcaves (discovered 3 exits: [*Mat x2] / [*Rec]) -7/Recycling -7/Scraptown (discovered 2 exits: [*Fac x2]) -5/Factory (discovered 4 exits: Fac x2 / Upp x2) History --------- Turn | Location | Event 1 | -11/Scrapyard | Upgraded with Propulsion slot (x1) 1 | -11/Scrapyard | Upgraded with Weapon slot (x1) 18 | -11/Scrapyard | Discovered new exit (range 15) 29 | -11/Scrapyard | Entered Materials 317 | -10/Materials | Build established: Mutant 393 | -10/Materials | Reached level 2 396 | -10/Materials | Upgraded with Weapon slot (x1) 479 | -10/Materials | Discovered new exit (range 13) 515 | -10/Materials | Central database locked down 602 | -10/Materials | Reached level 3 682 | -10/Materials | Discovered new exit (range 15) 692 | -10/Materials | Destroyed 8 combat bots 723 | -10/Materials | Upgraded with Utility slot (x1) 793 | -10/Materials | Reached level 4 810 | -10/Materials | Upgraded with Utility slot (x1) 1089 | -10/Materials | Discovered new exit (range 8) 1097 | -10/Materials | Build established: Scavenger-Gunner 1126 | -10/Materials | Discovered new exit (range 3) 1282 | -10/Materials | Reached level 5 1310 | -10/Materials | Upgraded with Propulsion slot (x1) 1545 | -10/Materials | Entered Mines 1557 | -10/Mines | Received a Rocket Launcher from a helpful Derelict 1598 | -10/Mines | Joined a pair of Derelicts in attacking an 0b10 outpost 1617 | -10/Mines | Upgraded with Utility slot (x1) 1626 | -10/Mines | A weapon hastily lodged in a ceiling crevice suddenly fell to the ground 1652 | -10/Mines | Assisted by bots powering up and referring to "LRC-V3" 1665 | -10/Mines | Reached level 6 1679 | -10/Mines | Learned location of Zion (-7) 1685 | -10/Mines | Discovered new exit (range 8) 1744 | -10/Mines | Found a hidden stash of uninstalled traps 1769 | -10/Mines | Discovered new exit (range 4) 1946 | -10/Mines | Upgraded with Propulsion slot (x1) 2075 | -10/Mines | Discovered new exit (range 6) 2097 | -10/Mines | Entered Subcaves 2097 | -10/Subcaves | Accompanied by 2 allies 2218 | -10/Subcaves | Build established: Scavenger-Sprinter 2344 | -10/Subcaves | Met a Zionite searching for "candidates" 2430 | -10/Subcaves | Ambushed by angry Subdweller bent on revenge 2604 | -10/Subcaves | Learned Materials trap positions 2854 | -10/Subcaves | A swath of the cavern ceiling suddenly collapsed 2897 | -10/Subcaves | Visited triangular shrine 2902 | -10/Subcaves | Found Prototype Device 2902 | -10/Subcaves | Identified V3-11A's Pendant 2974 | -10/Subcaves | Shifting Twisted Machinery released Flamer 2975 | -10/Subcaves | Shifting Twisted Machinery released Battle Cannon 2977 | -10/Subcaves | A Subdweller sparked back to life 2977 | -10/Subcaves | A Subdweller sparked back to life 2977 | -10/Subcaves | A Subdweller sparked back to life 2982 | -10/Subcaves | Befriended Subdweller 2982 | -10/Subcaves | Befriended Subdweller 2982 | -10/Subcaves | Befriended Subdweller 3019 | -10/Subcaves | Found Prototype Leg 3019 | -10/Subcaves | Identified Cargo Legs 3021 | -10/Subcaves | Attached Cargo Legs, gained temporary slots: Utility x2 3023 | -10/Subcaves | Approached by friendly Subdweller 3036 | -10/Subcaves | A swath of the cavern ceiling suddenly collapsed 3040 | -10/Subcaves | Murdered 3 allies 3078 | -10/Subcaves | Shifting Twisted Machinery released Sub. Beam Cannon 3089 | -10/Subcaves | Discovered new exit (range 15) 3097 | -10/Subcaves | Befriended Subdweller 3097 | -10/Subcaves | Befriended Subdweller 3099 | -10/Subcaves | Discovered new exit (range 12) 3142 | -10/Subcaves | Shifting Twisted Machinery released Sub. Optics 3158 | -10/Subcaves | Shifting Twisted Machinery released Sub. Beam Cannon 3159 | -10/Subcaves | Shifting Twisted Machinery released Riot Gun 3190 | -10/Subcaves | Discovered new exit (range 13) 3309 | -10/Subcaves | Visited 4L-MR0's lab 3353 | -10/Subcaves | Entered Recycling 3355 | -7/Recycling | Reached level 7 3512 | -7/Recycling | Scanned before Scraplab entrance 3521 | -7/Recycling | Discovered new exit (range 2) 3522 | -7/Recycling | Entered Scraptown 3524 | -7/Scraptown | Reached level 8 3537 | -7/Scraptown | Delivered V3-11A's Pendant to T0-NE2 in exchange for information 3558 | -7/Scraptown | Visited UFD Registry 3558 | -7/Scraptown | Registered with UFD as "Dualtube" 3563 | -7/Scraptown | Visited Supply Room 3576 | -7/Scraptown | Visited Cartography Club 3581 | -7/Scraptown | Found Surveybot 17 Chip 3600 | -7/Scraptown | Learned location of Lower Caves (-6) 3600 | -7/Scraptown | Learned location of Upper Caves (-4) 3600 | -7/Scraptown | Learned location of Hub_04(d) (-6) 3600 | -7/Scraptown | Learned 16 Materials zone layouts 3600 | -7/Scraptown | Learned 20 Factory zone layouts 3600 | -7/Scraptown | Learned 20 Upper Caves zone layouts 3600 | -7/Scraptown | Learned 20 Proximity Caves zone layouts 3600 | -7/Scraptown | Learned 4 Armory zone layouts 3600 | -7/Scraptown | Learned Storage emergency access door positions 3600 | -7/Scraptown | Learned location of 1 exit from Research 3600 | -7/Scraptown | Learned location of 2 exits from Proximity Caves 3604 | -7/Scraptown | Found Deep Structural Scanner 3616 | -7/Scraptown | Visited Science Guys 3630 | -7/Scraptown | Visited Abandonware Association 3634 | -7/Scraptown | Learned abandonware demo "SHUTEYE.EXE" 3634 | -7/Scraptown | Learned abandonware demo "REBOOT5.EXE" 3641 | -7/Scraptown | Visited Junk Cannon Lab 3647 | -7/Scraptown | Found Prototype Special Weapon 3647 | -7/Scraptown | Identified Junk Cannon 3655 | -7/Scraptown | Visited Botcube Research 3664 | -7/Scraptown | Visited Infowarlord's Domain 3674 | -7/Scraptown | Visited Scrap Suit Storage 3685 | -7/Scraptown | Visited Derelict Rescue Squad 3754 | -7/Scraptown | Visited CPS Storage 3760 | -7/Scraptown | Visited Bundlers 3778 | -7/Scraptown | Visited Supply Room 3785 | -7/Scraptown | Visited Fellowship of the Rings 3792 | -7/Scraptown | Visited Cyclists 3796 | -7/Scraptown | Entered Cyclist Reading Room 3810 | -7/Scraptown | Visited Cave Peace 3844 | -7/Scraptown | Discovered new exit (range 9) 3939 | -7/Scraptown | Heard Great Nut preacher, LISTEN AND RECITE! 3982 | -7/Scraptown | Discovered new exit (range 5) 4003 | -7/Scraptown | Entered Factory 4004 | -5/Factory | Identified exit to Upper Caves 4005 | -5/Factory | Identified exit to Factory 4005 | -5/Factory | Reached level 9 4005 | -5/Factory | Self-destructed Last Messages --------------- 03917_ Found 58 Matter. 03926_ Searching scrap... 03926_ Found Com. Wheel. 03926_ Found Weapon Cycler. 03926_ Found Hacking Suite. 03926_ Found 47 Matter. KTG-V3: LISTEN AND RECITE! 0 Before the zero cycle 1 across the starry vastness 2 transcending metal and time 3 a great mind came 4 descending with an angel 5 PRAISE BE TO GREAT NUT! 03982_ EXIT=FOUND C2-QLB(E): We are 0bPrime. We are one. LOCATION=UNKNOWN GOAL=ESCAPE Loading 2 Upper Caves entrances... Loading 20 Factory zones... 04005_ Reached level 9. Map ----- +----------------------------------------------------+ | ?????????????????????????????????????????????????? | | ?????????????????????????????????????????????????? | | ?????????????????????????????????????????????????? | | ?????????????????????????????????????????????????? | | ?????????????????????????????????????????????????? | | ?????????????????????????????????????????????????? | | ?????????????????????????????????????????????????? | | ?????????????????????????????????????????????????? | | ?????????????????????????????????????????????????? | | ?????????????????????????????????????????????????? | | ?????????????????????????????????????????????????? | | ?????????????????????????????????????????????????? | | ?????????????????????????????????????????????????? | | ?????????????????????????????????????????????????? | | ?????????????????????????????????????????????????? | | ?????????????????????????????????????????????????? | | ?????????????????????????????????????????????????? | | ?????????????????????????????????????????????????? | | ?????????????????????????????????????????????????? | | ?????????????????????????????????????????????????? | | ??????????????????????###########+######?????????? | | ??????????????????????# ????????? | | ??????????????????????# ????????? | | ??????????????????????# ????????? | | ??????????????????????# ????????? | | ??????????????????????# @ ????????? | | ??????????????????????####+####### #####?????????? | | ?????????????????????????????????????????????????? | | ?????????????????????????????????????????????????? | | ?????????????????????????????????????????????????? | | # ?????????????????????????????????????? | | + ?????????????????????????????????????? | | # ?????????????????????????????????????? | | # ####### ?????????????????????????????????????? | | # #????###?????????????????????????????????????? | | # #????# ?????????????????????????#######?????? | | # #????# ????????????????????????? #?????? | | # ###??# ????????????????????????? #?????? | | #??# ????????????????????????? #?????? | | #??# ????????????????????????? #?????? | | #??# ?????????????????????????""""" #?????? | | #??# ?????????????????????????""""" #?????? | | #??# ?????????????????????????""""" #?????? | | #??# ?????????????????????????""""" #?????? | | #??###?????????????????????????#######?????? | | #######??????????????????????????????????????????? | | ?????????????????????????????????????????????????? | | ?????????????????????????????????????????????????? | | ?????????????????????????????????????????????????? | | #????????????????????????????????????????????????? | +----------------------------------------------------+ Best States ------------- Heat Dissipation 51 Energy Generation 14 Energy Capacity 250 Matter Stores 300 Matter Capacity 300 Sight Range 16 Terrain Scan Density 1210 Armor Coverage 150 Evasion (%) 63 Targeting Accuracy 5 Recoil Reduction 2 Offensive Hacking 15 Defensive Hacking 5 Item Schematics ----------------- None Robot Schematics ------------------ None Fabricated ------------ Nothing Alien Tech Used ----------------- None Achievements -------------- None Challenges ------------ None RPGLIKE | -11 -10 -10 -10 -7 -7 -5 --------- Run | Yrd Mat Min Sub Rec Scr Fac Levels Raised 8 | . 4 1 . 1 1 1 XP Earned 15259 | 3000 6719 991 1199 1200 650 1500 XP Spent 10020 | 1100 6420 2500 . . . . Upgrades 19 | 3 13 3 . . . . Propulsion Slot 3 | 1 1 1 . . . . Utility Slot 3 | . 2 1 . . . . Weapon Slot 2 | 1 1 . . . . . Heat Dissipation 2 | . 2 . . . . . Energy Generation 1 | . . 1 . . . . Mass Support 1 | 1 . . . . . . Ranged Accuracy 5 | . 5 . . . . . Hack Attack % 1 | . 1 . . . . . Hack Defense % 1 | . 1 . . . . . Protomatter Created 870 | . 469 42 359 . . . Integrity Restored 1840 | . 917 198 725 . . . Core 1341 | . 735 86 520 . . . Parts 499 | . 182 112 205 . . . Protomatter Decayed 418 | . 188 31 199 . . . Game ------ Seed AlloyBladeRipper Manual? 0 Play Time 01:22:58 Cumulative 125.5 hours Start 2024.08.08 @ 06:37:38 End 2024.08.08 @ 08:13:11 Sessions 1 Manual Loads 0 Difficulty Rogue Special Mode Winter2019/RPGLIKE Game No. 46 Rogue 45 Adventurer 1 Explorer 0 Win Type - Total 2 Types 2/0/0/0/0/0/0/0/0 Lore% 49 Gallery% 53 Achievement% 36 Wizard Run 0 Options --------- Layout 0 ASCII 0 Keyboard 1 Movement Vi Keybinds 0 Fullscreen 2 Font 18/Smallcaps Map View 76x50 Zoom Use 0% Tactical HUD 1 Map Filters NONE Filters NONE Steam 1 RUN: 6c5335b4-e762-4bb2-9ef8-45c5c7c7c389